lending/lending_fUSD_20250121
["ID","MTS","AMOUNT","RATE_DAILY","PERIOD"]
[349774430,1737420662883,-500.0,0.00020821,2]
[349774431,1737420662892,-556.06,0.00020821,2]
[349774432,1737420662902,-1503.59,0.00020821,2]
[349774433,1737420662911,-500.0,0.00020821,2]
[349774434,1737420662920,-500.0,0.00020821,2]
[349774435,1737420662931,-826.66,0.00020821,2]
[349774436,1737420662941,-500.0,0.00020821,2]
[349774437,1737420662950,-500.0,0.00020821,2]
[349774438,1737420662959,-1445.2,0.00020821,2]
[349774439,1737420662969,-549.87,0.00020821,2]
[349774440,1737420662978,-1204.67,0.00020821,2]
[349774441,1737420662988,-883.4,0.00020821,2]
[349774442,1737420662997,-500.0,0.00020821,2]
[349774443,1737420663006,-500.0,0.00020821,2]
[349774444,1737420663016,-500.0,0.00020821,2]
[349774445,1737420663026,-500.0,0.00020821,2]
[349774446,1737420663035,-500.0,0.00020821,2]
[349774447,1737420663045,-1126.47,0.00020821,2]
[349774448,1737420663055,-633.24,0.00020821,2]
[349774449,1737420663066,-2671.26,0.00020821,2]
[349774450,1737420663076,-693.42,0.00020821,2]
[349774451,1737420663086,-1915.82,0.00020821,2]
[349774452,1737420663096,-500.0,0.00020821,2]
[349774453,1737420663106,-500.0,0.00020821,2]
[349774454,1737420663116,-2393.16,0.00020821,2]
[349774455,1737420663126,-500.0,0.00020821,2]
[349774456,1737420663136,-513.39,0.00020821,2]
[349774457,1737420663146,-603.06,0.00020821,2]
[349774458,1737420663156,-1417.44,0.00020821,2]
[349774459,1737420663165,-500.0,0.00020821,2]
[349774460,1737420663175,-500.0,0.00020821,2]
[349774461,1737420663189,-500.0,0.00020821,2]
[349774462,1737420663199,-500.0,0.00020821,2]
[349774463,1737420663209,-500.0,0.00020821,2]
[349774464,1737420663221,-500.0,0.00020821,2]
[349774465,1737420663231,-500.0,0.00020821,2]
[349774466,1737420663245,-500.0,0.00020821,2]
[349774467,1737420663255,-582.27,0.00020821,2]
[349774468,1737420663266,-500.0,0.00020821,2]
[349774469,1737420663276,-1857.25,0.00020821,2]
[349774470,1737420663286,-2242.43,0.00020821,2]
[349774471,1737420663296,-230.81181001,0.00020866,2]
[349774472,1737420663307,-150.0,0.00020897,2]
[349774473,1737420663320,-654.67928511,0.000209,2]
[349774474,1737420663330,-161.215,0.000209,2]
[349774475,1737420663340,-230.81181001,0.00020934,2]
[349774476,1737420663349,-673.02,0.00020962,2]
[349774477,1737420663358,-500.0,0.00020962,2]
[349774478,1737420663368,-500.0,0.00020973,2]
[349774479,1737420663378,-1482.97,0.00020995,2]
[349774480,1737420663387,-500.0,0.00020995,2]
[349774481,1737420663397,-1199.3,0.00020995,2]
[349774482,1737420663407,-551.03,0.00020995,2]
[349774483,1737420663416,-2292.14,0.00020995,2]
[349774484,1737420663426,-500.0,0.00020995,2]
[349774485,1737420663439,-500.0,0.00020995,2]
[349774486,1737420663448,-500.0,0.00020995,2]
[349774487,1737420663458,-500.0,0.00020995,2]
[349774488,1737420663467,-500.0,0.00020995,2]
[349774489,1737420663477,-753.81,0.00020995,2]
[349774490,1737420663487,-597.97,0.00020995,2]
[349774491,1737420663497,-750.01,0.00020995,2]
[349774492,1737420663506,-652.84,0.00020995,2]
[349774493,1737420663515,-1174.84,0.00020995,2]
[349774494,1737420663524,-2187.02,0.00020995,2]
[349774495,1737420663534,-848.77,0.00020995,2]
[349774496,1737420663543,-1671.37,0.00020995,2]
[349774497,1737420663553,-3969.98,0.00020995,2]
[349774498,1737420663562,-500.0,0.00020995,2]
[349774499,1737420663571,-634.19,0.00020995,2]
[349774500,1737420663580,-3283.45,0.00020995,2]
[349774501,1737420663590,-1093.65,0.00020995,2]
[349774502,1737420663599,-654.71,0.00020995,2]
[349774503,1737420663611,-2167.64,0.00020995,2]
[349774504,1737420663623,-636.22,0.00020995,2]
[349774505,1737420663633,-500.0,0.00020995,2]
[349774506,1737420663643,-709.4,0.00020995,2]
[349774507,1737420663654,-1498.52,0.00020995,2]
[349774508,1737420663663,-1044.91,0.00020995,2]
[349774509,1737420663673,-1345.86,0.00020995,2]
[349774510,1737420663689,-500.0,0.00020995,2]
[349774511,1737420663699,-966.72,0.00020995,2]
[349774512,1737420663710,-1000.0,0.00020995,2]
[349774513,1737420663721,-1312.72,0.00020995,2]
[349774514,1737420663731,-615.08,0.00020995,2]
[349774515,1737420663742,-1967.56,0.00020995,2]
[349774516,1737420663752,-144690.0,0.00021,2]
[349774517,1737420663763,-230.81181001,0.00021003,2]
[349774518,1737420663773,-1500.0,0.00021022,2]
[349774519,1737420663783,-19075.48069027,0.0002104,2]
[349774520,1737420663793,-150.0,0.00021057,2]
[349774521,1737420663802,-150.0,0.00021061,2]
[349774522,1737420663811,-500.0,0.00021066,2]
[349774523,1737420663821,-757.09,0.00021066,2]
[349774524,1737420663834,-500.0,0.00021066,2]
[349774525,1737420663844,-723.87,0.00021066,2]
[349774526,1737420663854,-500.0,0.00021066,2]
[349774527,1737420663865,-567.14,0.00021066,2]
[349774528,1737420663875,-500.0,0.00021066,2]
[349774529,1737420663885,-500.0,0.00021066,2]
[349774530,1737420663895,-500.0,0.00021066,2]
[349774531,1737420663905,-500.0,0.00021066,2]
[349774532,1737420663915,-600.76,0.00021066,2]
[349774533,1737420663924,-500.0,0.00021066,2]
[349774534,1737420663937,-500.0,0.00021066,2]
[349774535,1737420663947,-500.0,0.00021066,2]
[349774536,1737420663957,-541.66,0.00021066,2]
[349774537,1737420663967,-500.0,0.00021066,2]
[349774538,1737420663977,-230.81181001,0.00021072,2]
[349774539,1737420663994,-910.88,0.00021081,2]
[349774540,1737420664022,-500.0,0.00021095,2]
[349774541,1737420664129,-500.0,0.00021095,2]
[349774542,1737420664139,-500.0,0.00021095,2]
[349774543,1737420664149,-500.0,0.00021095,2]
[349774544,1737420664159,-500.0,0.00021095,2]
[349774545,1737420664169,-500.0,0.00021095,2]
[349774546,1737420664183,-541.66,0.00021095,2]
[349774547,1737420664194,-500.0,0.00021095,2]
[349774548,1737420664204,-500.0,0.00021095,2]
[349774549,1737420664214,-1183.9,0.00021095,2]
[349774550,1737420664225,-505.3,0.00021095,2]
[349774551,1737420664234,-500.0,0.00021095,2]
[349774552,1737420664246,-500.0,0.00021095,2]
[349774553,1737420664256,-500.0,0.00021095,2]
[349774554,1737420664267,-500.0,0.00021095,2]
[349774555,1737420664278,-500.0,0.00021095,2]
[349774556,1737420664288,-500.0,0.00021095,2]
[349774557,1737420664298,-500.0,0.00021095,2]
[349774558,1737420664313,-500.0,0.00021095,2]
[349774559,1737420664325,-500.0,0.00021095,2]
[349774560,1737420664335,-501.19,0.00021095,2]
[349774561,1737420664344,-500.0,0.00021095,2]
[349774562,1737420664354,-500.19782587,0.00021095,2]
[349774563,1737420664363,-500.0,0.00021095,2]
[349774564,1737420664373,-500.0,0.00021095,2]
[349774565,1737420664382,-500.0,0.00021095,2]
[349774566,1737420664391,-500.0,0.00021095,2]
[349774567,1737420664401,-500.0,0.00021095,2]
[349774568,1737420664411,-500.0,0.00021095,2]
[349774569,1737420664421,-500.0,0.00021095,2]
[349774570,1737420664434,-500.0,0.00021095,2]
[349774571,1737420664444,-500.0,0.00021095,2]
[349774572,1737420664453,-591.57,0.00021095,2]
[349774573,1737420664463,-500.0,0.00021095,2]
[349774574,1737420664472,-500.0,0.00021095,2]
[349774575,1737420664482,-500.0,0.00021095,2]
[349774576,1737420664493,-572.63,0.00021095,2]
[349774577,1737420664503,-500.0,0.00021095,2]
[349774578,1737420664512,-500.0,0.00021095,2]
[349774579,1737420664522,-500.0,0.00021095,2]
[349774580,1737420664531,-500.0,0.00021095,2]
[349774581,1737420664541,-407.27023133,0.00021095,2]
[349774582,1737420664550,-367.97180898,0.00021095,2]
[349774583,1737420664560,-500.0,0.00021095,2]
[349774584,1737420664569,-583.33,0.00021095,2]
[349774585,1737420664579,-500.0,0.00021095,2]
[349774586,1737420664588,-500.0,0.00021095,2]
[349774587,1737420664597,-569.92,0.00021095,2]
[349774588,1737420664607,-604.16,0.00021095,2]
[349774589,1737420664616,-500.0,0.00021095,2]
[349774590,1737420664625,-664.29,0.00021095,2]
[349774591,1737420664634,-500.0,0.00021095,2]
[349774592,1737420664644,-500.0,0.00021095,2]
[349774593,1737420664653,-500.0,0.00021095,2]
[349774594,1737420664663,-500.0,0.00021095,2]
[349774595,1737420664672,-500.0,0.00021095,2]
[349774596,1737420664684,-500.0,0.00021095,2]
[349774597,1737420664695,-687.02,0.00021095,2]
[349774598,1737420664704,-500.0,0.00021095,2]
[349774599,1737420664714,-500.0,0.00021095,2]
[349774600,1737420664723,-500.0,0.00021095,2]
[349774601,1737420664732,-500.0,0.00021095,2]
[349774602,1737420664741,-500.0,0.00021095,2]
[349774603,1737420664751,-560.89,0.00021095,2]
[349774604,1737420664760,-500.0,0.00021095,2]
[349774605,1737420664769,-500.0,0.00021095,2]
[349774606,1737420664779,-500.0,0.00021095,2]
[349774607,1737420664789,-668.45,0.00021095,2]
[349774608,1737420664804,-650.98,0.00021095,2]
[349774609,1737420664822,-500.0,0.00021095,2]
[349774610,1737420664840,-563.68,0.00021095,2]
[349774611,1737420664859,-506.46,0.00021095,2]
[349774612,1737420664874,-588.71,0.00021095,2]
[349774613,1737420664892,-500.0,0.00021095,2]
[349774614,1737420664909,-566.19,0.00021095,2]
[349774615,1737420664930,-500.0,0.00021095,2]
[349774616,1737420664949,-500.0,0.00021095,2]
[349774617,1737420664967,-500.0,0.00021095,2]
[349774618,1737420664984,-500.0,0.00021095,2]
[349774619,1737420664998,-529.83,0.00021095,2]
[349774620,1737420665016,-500.0,0.00021095,2]
[349774621,1737420665031,-1697.86,0.00021095,2]
[349774622,1737420665047,-500.0,0.00021095,2]
[349774623,1737420665064,-500.0,0.00021095,2]
[349774624,1737420665080,-1013.61,0.00021095,2]
[349774625,1737420665096,-564.16,0.00021095,2]
[349774626,1737420665112,-500.0,0.00021095,2]
[349774627,1737420665129,-659.43,0.00021095,2]
[349774628,1737420665145,-606.85,0.00021095,2]
[349774629,1737420665161,-796.12,0.00021095,2]
[349774630,1737420665180,-500.0,0.00021095,2]
[349774631,1737420665197,-716.849871,0.00021095,2]
[349774632,1737420665211,-500.0,0.00021095,2]
[349774633,1737420665231,-500.0,0.00021095,2]
[349774634,1737420665246,-500.0,0.00021095,2]
[349774635,1737420665270,-500.0,0.00021095,2]
[349774636,1737420665290,-500.0,0.00021095,2]
[349774637,1737420665307,-1154.51,0.00021095,2]
[349774638,1737420665324,-500.0,0.00021095,2]
[349774639,1737420665340,-506.96,0.00021095,2]
[349774640,1737420665356,-2225.1,0.00021095,2]
[349774641,1737420665373,-1515.28,0.00021095,2]
[349774642,1737420665389,-882.93,0.00021095,2]
[349774643,1737420665404,-500.0,0.00021095,2]
[349774644,1737420665419,-487.986546,0.00021095,2]
[349774645,1737420665435,-1343.47,0.00021095,2]
[349774646,1737420665452,-881.44,0.00021095,2]
[349774647,1737420665466,-500.0,0.00021095,2]
[349774648,1737420665482,-2159.62,0.00021095,2]
[349774649,1737420665498,-1653.02,0.00021095,2]
[349774650,1737420665513,-845.58,0.00021095,2]
[349774651,1737420665528,-500.0,0.00021095,2]
[349774652,1737420665550,-3061.98,0.00021095,2]
[349774653,1737420665567,-610.57,0.00021095,2]
[349774654,1737420665581,-1451.25,0.00021095,2]
[349774655,1737420665596,-1027.64,0.00021095,2]
[349774656,1737420665609,-500.0,0.00021095,2]
[349774657,1737420665624,-500.0,0.00021095,2]
[349774658,1737420665639,-969.02,0.00021095,2]
[349774659,1737420665654,-1967.24,0.00021095,2]
[349774660,1737420665669,-500.0,0.00021095,2]
[349774661,1737420665686,-1111.37,0.00021095,2]
[349774662,1737420665701,-898.19,0.00021095,2]
[349774663,1737420665715,-980.84,0.00021095,2]
[349774664,1737420665730,-2840.37,0.00021095,2]
[349774665,1737420665745,-1226.71,0.00021095,2]
[349774666,1737420665761,-500.0,0.00021095,2]
[349774667,1737420665777,-652.51,0.00021095,2]
[349774668,1737420665792,-619.63,0.00021095,2]
[349774669,1737420665805,-958.08,0.00021095,2]
[349774670,1737420665814,-1204.91,0.00021095,2]
[349774671,1737420665823,-1210.94,0.00021095,2]
[349774672,1737420665987,-801.67,0.00021095,2]
[349774673,1737420666015,-500.0,0.00021095,2]
[349774674,1737420666026,-500.0,0.00021095,2]
[349774675,1737420666039,-500.0,0.00021095,2]
[349774676,1737420666049,-997.28,0.00021095,2]
[349774677,1737420666060,-2052.29,0.00021095,2]
[349774678,1737420666072,-1712.99,0.00021095,2]
[349774679,1737420666084,-513.12,0.00021095,2]
[349774680,1737420666095,-1991.53,0.00021095,2]
[349774681,1737420666105,-1181.16,0.00021095,2]
[349774682,1737420666117,-1416.54,0.00021095,2]
[349774683,1737420666130,-500.0,0.00021095,2]
[349774684,1737420666140,-3603.52,0.00021095,2]
[349774685,1737420666151,-500.0,0.00021095,2]
[349774686,1737420666162,-500.0,0.00021095,2]
[349774687,1737420666174,-2319.77,0.00021095,2]
[349774688,1737420666193,-780.49,0.00021095,2]
[349774689,1737420666203,-1254.23,0.00021095,2]
[349774690,1737420666216,-500.0,0.00021095,2]
[349774691,1737420666229,-500.0,0.00021095,2]
[349774692,1737420666242,-2547.64,0.00021095,2]
[349774693,1737420666257,-500.0,0.00021095,2]
[349774694,1737420666269,-556.06,0.00021095,2]
[349774695,1737420666283,-1503.59,0.00021095,2]
[349774696,1737420666295,-500.0,0.00021095,2]
[349774697,1737420666307,-500.0,0.00021095,2]
[349774698,1737420666319,-826.66,0.00021095,2]
[349774699,1737420666332,-500.0,0.00021095,2]
[349774700,1737420666343,-500.0,0.00021095,2]
[349774701,1737420666353,-1445.2,0.00021095,2]
[349774702,1737420666365,-549.87,0.00021095,2]
[349774703,1737420666376,-1204.67,0.00021095,2]
[349774704,1737420666388,-883.4,0.00021095,2]
[349774705,1737420666399,-500.0,0.00021095,2]
[349774706,1737420666411,-500.0,0.00021095,2]
[349774707,1737420666421,-500.0,0.00021095,2]
[349774708,1737420666439,-467.27700577,0.00021095,2]
[349774709,1737420666452,-1126.47,0.00021095,2]
[349774710,1737420666462,-500.0,0.00021095,2]
[349774711,1737420666473,-633.24,0.00021095,2]
[349774712,1737420666483,-2671.26,0.00021095,2]
[349774713,1737420666494,-693.42,0.00021095,2]
[349774714,1737420666505,-1915.82,0.00021095,2]
[349774715,1737420666516,-500.0,0.00021095,2]
[349774716,1737420666529,-500.0,0.00021095,2]
[349774717,1737420666539,-2393.16,0.00021095,2]
[349774718,1737420666549,-500.0,0.00021095,2]
[349774719,1737420666559,-513.39,0.00021095,2]
[349774720,1737420666569,-603.06,0.00021095,2]
[349774721,1737420666578,-1417.44,0.00021095,2]
[349774722,1737420666588,-500.0,0.00021095,2]
[349774723,1737420666597,-475.92933349,0.00021095,2]
[349774724,1737420666607,-500.0,0.00021095,2]
[349774725,1737420666616,-562.37,0.00021095,2]
[349774726,1737420666626,-500.0,0.00021095,2]
[349774727,1737420666637,-500.0,0.00021095,2]
[349774728,1737420666647,-500.0,0.00021095,2]
[349774729,1737420666657,-500.0,0.00021095,2]
[349774730,1737420666666,-582.27,0.00021095,2]
[349774731,1737420666675,-500.0,0.00021095,2]
[349774732,1737420666690,-1857.25,0.00021095,2]
[349774733,1737420666701,-2242.43,0.00021095,2]
[349774734,1737420666710,-150.0,0.00021135,2]
[349774735,1737420666721,-230.81181001,0.00021141,2]
[349774736,1737420666730,-150.0,0.00021175,2]
[349774737,1737420666740,-150.0,0.00021175,2]
[349774738,1737420666751,-230.81181001,0.0002121,2]
[349774739,1737420666761,-500.00076775,0.00021221,2]
[349774740,1737420666770,-654.67928511,0.00021233,2]
[349774741,1737420666780,-673.02,0.00021236,2]
[349774742,1737420666791,-500.0,0.00021236,2]
[349774743,1737420666801,-1482.97,0.00021269,2]
[349774744,1737420666812,-500.0,0.00021269,2]
[349774745,1737420666822,-1199.3,0.00021269,2]
[349774746,1737420666833,-551.03,0.00021269,2]
[349774747,1737420666843,-2292.14,0.00021269,2]
[349774748,1737420666853,-500.0,0.00021269,2]
[349774749,1737420666863,-500.0,0.00021269,2]
[349774750,1737420666872,-500.0,0.00021269,2]
[349774751,1737420666883,-500.0,0.00021269,2]
[349774752,1737420666892,-518.98,0.00021269,2]
[349774753,1737420666902,-753.81,0.00021269,2]
[349774754,1737420666912,-597.97,0.00021269,2]
[349774755,1737420666921,-750.01,0.00021269,2]
[349774756,1737420666935,-652.84,0.00021269,2]
[349774757,1737420666945,-1174.84,0.00021269,2]
[349774758,1737420666954,-2187.02,0.00021269,2]
[349774759,1737420666964,-848.77,0.00021269,2]
[349774760,1737420666973,-1671.37,0.00021269,2]
[349774761,1737420666983,-3969.98,0.00021269,2]
[349774762,1737420666994,-500.0,0.00021269,2]
[349774763,1737420667004,-634.19,0.00021269,2]
[349774764,1737420667014,-3283.45,0.00021269,2]
[349774765,1737420667023,-1093.65,0.00021269,2]
[349774766,1737420667032,-654.71,0.00021269,2]
[349774767,1737420667042,-2167.64,0.00021269,2]
[349774768,1737420667052,-636.22,0.00021269,2]
[349774769,1737420667061,-500.0,0.00021269,2]
[349774770,1737420667071,-709.4,0.00021269,2]
[349774771,1737420667082,-1498.52,0.00021269,2]
[349774772,1737420667091,-1044.91,0.00021269,2]
[349774773,1737420667101,-1345.86,0.00021269,2]
[349774774,1737420667110,-500.0,0.00021269,2]
[349774775,1737420667120,-966.72,0.00021269,2]
[349774776,1737420667130,-1000.0,0.00021269,2]
[349774777,1737420667140,-1312.72,0.00021269,2]
[349774778,1737420667149,-615.08,0.00021269,2]
[349774779,1737420667158,-1967.56,0.00021269,2]
[349774780,1737420667178,-230.81181001,0.00021279,2]
[349774781,1737420667193,-751.14,0.00021321,2]
[349774782,1737420667202,-150.0,0.00021324,2]
[349774783,1737420667212,-19075.48069027,0.00021326,2]
[349774784,1737420667227,-500.0,0.0002134,2]
[349774785,1737420667237,-757.09,0.0002134,2]
[349774786,1737420667247,-500.0,0.0002134,2]
[349774787,1737420667259,-723.87,0.0002134,2]
[349774788,1737420667269,-567.14,0.0002134,2]
[349774789,1737420667280,-500.0,0.0002134,2]
[349774790,1737420667290,-500.0,0.0002134,2]
[349774791,1737420667301,-500.0,0.0002134,2]
[349774792,1737420667312,-500.0,0.0002134,2]
[349774793,1737420667321,-600.76,0.0002134,2]
[349774794,1737420667331,-500.0,0.0002134,2]
[349774795,1737420667341,-500.0,0.0002134,2]
[349774796,1737420667351,-500.0,0.0002134,2]
[349774797,1737420667361,-541.66,0.0002134,2]
[349774798,1737420667371,-500.0,0.0002134,2]
[349774799,1737420667381,-230.81181001,0.00021348,2]
[349774800,1737420667391,-150.0,0.00021359,2]
[349774801,1737420667401,-500.0,0.00021369,2]
[349774802,1737420667411,-500.0,0.00021369,2]
[349774803,1737420667421,-500.0,0.00021369,2]
[349774804,1737420667432,-500.0,0.00021369,2]
[349774805,1737420667444,-500.0,0.00021369,2]
[349774806,1737420667453,-541.66,0.00021369,2]
[349774807,1737420667464,-500.0,0.00021369,2]
[349774808,1737420667473,-1183.9,0.00021369,2]
[349774809,1737420667483,-505.3,0.00021369,2]
[349774810,1737420667493,-500.0,0.00021369,2]
[349774811,1737420667503,-500.0,0.00021369,2]
[349774812,1737420667512,-500.0,0.00021369,2]
[349774813,1737420667521,-500.0,0.00021369,2]
[349774814,1737420667531,-500.0,0.00021369,2]
[349774815,1737420667544,-500.0,0.00021369,2]
[349774816,1737420667553,-500.0,0.00021369,2]
[349774817,1737420667563,-500.0,0.00021369,2]
[349774818,1737420667572,-500.0,0.00021369,2]
[349774819,1737420667581,-501.19,0.00021369,2]
[349774820,1737420667591,-500.0,0.00021369,2]
[349774821,1737420667600,-500.0,0.00021369,2]
[349774822,1737420667610,-500.0,0.00021369,2]
[349774823,1737420667619,-500.0,0.00021369,2]
[349774824,1737420667628,-500.0,0.00021369,2]
[349774825,1737420667637,-500.0,0.00021369,2]
[349774826,1737420667646,-500.0,0.00021369,2]
[349774827,1737420667656,-500.0,0.00021369,2]
[349774828,1737420667665,-500.0,0.00021369,2]
[349774829,1737420667674,-500.0,0.00021369,2]
[349774830,1737420667688,-316.05347278,0.00021369,2]
[349774831,1737420667697,-500.0,0.00021369,2]
[349774832,1737420667706,-500.0,0.00021369,2]
[349774833,1737420667715,-572.63,0.00021369,2]
[349774834,1737420667724,-500.0,0.00021369,2]
[349774835,1737420667733,-500.0,0.00021369,2]
[349774836,1737420667743,-500.0,0.00021369,2]
[349774837,1737420667753,-500.0,0.00021369,2]
[349774838,1737420667763,-500.0,0.00021369,2]
[349774839,1737420667773,-583.33,0.00021369,2]
[349774840,1737420667783,-500.0,0.00021369,2]
[349774841,1737420667792,-500.0,0.00021369,2]
[349774842,1737420667801,-569.92,0.00021369,2]
[349774843,1737420667811,-604.16,0.00021369,2]
[349774844,1737420667820,-500.0,0.00021369,2]
[349774845,1737420667830,-664.29,0.00021369,2]
[349774846,1737420667839,-500.0,0.00021369,2]
[349774847,1737420667849,-500.0,0.00021369,2]
[349774848,1737420667858,-500.0,0.00021369,2]
[349774849,1737420667867,-500.0,0.00021369,2]
[349774850,1737420667877,-500.0,0.00021369,2]
[349774851,1737420667886,-500.0,0.00021369,2]
[349774852,1737420667895,-687.02,0.00021369,2]
[349774853,1737420667905,-500.0,0.00021369,2]
[349774854,1737420667915,-500.0,0.00021369,2]
[349774855,1737420667924,-500.0,0.00021369,2]
[349774856,1737420667934,-500.0,0.00021369,2]
[349774857,1737420667944,-500.0,0.00021369,2]
[349774858,1737420667954,-560.89,0.00021369,2]
[349774859,1737420667964,-500.0,0.00021369,2]
[349774860,1737420667973,-500.0,0.00021369,2]
[349774861,1737420667983,-500.0,0.00021369,2]
[349774862,1737420667992,-668.45,0.00021369,2]
[349774863,1737420668002,-650.98,0.00021369,2]
[349774864,1737420668011,-500.0,0.00021369,2]
[349774865,1737420668021,-563.68,0.00021369,2]
[349774866,1737420668030,-588.71,0.00021369,2]
[349774867,1737420668040,-500.0,0.00021369,2]
[349774868,1737420668050,-566.19,0.00021369,2]
[349774869,1737420668060,-500.0,0.00021369,2]
[349774870,1737420668069,-500.0,0.00021369,2]
[349774871,1737420668079,-500.0,0.00021369,2]
[349774872,1737420668088,-500.0,0.00021369,2]
[349774873,1737420668098,-529.83,0.00021369,2]
[349774874,1737420668107,-500.0,0.00021369,2]
[349774875,1737420668118,-1697.86,0.00021369,2]
[349774876,1737420668127,-500.0,0.00021369,2]
[349774877,1737420668137,-500.0,0.00021369,2]
[349774878,1737420668147,-1013.61,0.00021369,2]
[349774879,1737420668156,-564.16,0.00021369,2]
[349774880,1737420668165,-500.0,0.00021369,2]
[349774881,1737420668175,-659.43,0.00021369,2]
[349774882,1737420668186,-606.85,0.00021369,2]
[349774883,1737420668196,-796.12,0.00021369,2]
[349774884,1737420668206,-500.0,0.00021369,2]
[349774885,1737420668217,-716.849871,0.00021369,2]
[349774886,1737420668227,-500.0,0.00021369,2]
[349774887,1737420668237,-500.0,0.00021369,2]
[349774888,1737420668252,-500.0,0.00021369,2]
[349774889,1737420668391,-500.0,0.00021369,2]
[349774890,1737420668403,-500.0,0.00021369,2]
[349774891,1737420668413,-1154.51,0.00021369,2]
[349774892,1737420668422,-500.0,0.00021369,2]
[349774893,1737420668431,-506.96,0.00021369,2]
[349774894,1737420668444,-2225.1,0.00021369,2]
[349774895,1737420668453,-1515.28,0.00021369,2]
[349774896,1737420668464,-882.93,0.00021369,2]
[349774897,1737420668474,-500.0,0.00021369,2]
[349774898,1737420668484,-487.986546,0.00021369,2]
[349774899,1737420668494,-1343.47,0.00021369,2]
[349774900,1737420668504,-881.44,0.00021369,2]
[349774901,1737420668514,-500.0,0.00021369,2]
[349774902,1737420668523,-2159.62,0.00021369,2]
[349774903,1737420668532,-1653.02,0.00021369,2]
[349774904,1737420668542,-845.58,0.00021369,2]
[349774905,1737420668551,-500.0,0.00021369,2]
[349774906,1737420668561,-3061.98,0.00021369,2]
[349774907,1737420668571,-610.57,0.00021369,2]
[349774908,1737420668582,-1451.25,0.00021369,2]
[349774909,1737420668592,-1027.64,0.00021369,2]
[349774910,1737420668604,-500.0,0.00021369,2]
[349774911,1737420668614,-500.0,0.00021369,2]
[349774912,1737420668625,-969.02,0.00021369,2]
[349774913,1737420668636,-1967.24,0.00021369,2]
[349774914,1737420668647,-561.37,0.00021369,2]
[349774915,1737420668658,-1111.37,0.00021369,2]
[349774916,1737420668667,-898.19,0.00021369,2]
[349774917,1737420668677,-980.84,0.00021369,2]
[349774918,1737420668690,-2840.37,0.00021369,2]
[349774919,1737420668699,-1226.71,0.00021369,2]
[349774920,1737420668709,-500.0,0.00021369,2]
[349774921,1737420668718,-652.51,0.00021369,2]
[349774922,1737420668728,-619.63,0.00021369,2]
[349774923,1737420668738,-958.08,0.00021369,2]
[349774924,1737420668747,-1204.91,0.00021369,2]
[349774925,1737420668757,-1210.94,0.00021369,2]
[349774926,1737420668767,-801.67,0.00021369,2]
[349774927,1737420668777,-500.0,0.00021369,2]
[349774928,1737420668787,-500.0,0.00021369,2]
[349774929,1737420668796,-500.0,0.00021369,2]